bitfinex/quotes_BTCUSD_20251113
["timestamp","ask_amount","ask_price","bid_price","bid_amount"]
[1763041700879,0.27771153,102620.0,102610.0,0.09811606]
[1763041701080,0.53416351,102620.0,102610.0,0.02373606]
[1763041701954,0.53416351,102620.0,102610.0,0.00046606]
[1763041702175,0.27771153,102620.0,102610.0,0.00046606]
[1763041702377,0.53416351,102620.0,102610.0,0.00046606]
[1763041702620,0.53516351,102620.0,102610.0,0.00046606]
[1763041703492,0.86785932,102620.0,102610.0,0.00046606]
[1763041703699,0.83403423,102620.0,102610.0,0.00046606]
[1763041703910,0.85300671,102620.0,102610.0,0.00046606]
[1763041704323,0.83503423,102620.0,102610.0,0.00046606]
[1763041704525,1.1749998,102620.0,102610.0,0.00046606]
[1763041704735,1.27239928,102620.0,102610.0,0.00046606]
[1763041704938,1.27439928,102620.0,102610.0,0.00046606]
[1763041705148,1.27339928,102620.0,102610.0,0.00046606]
[1763041705357,1.1769998,102620.0,102610.0,0.00046606]
[1763041705567,1.1819998,102620.0,102610.0,0.00046606]
[1763041706652,1.2243998,102620.0,102610.0,0.00046606]
[1763041707069,0.71149584,102620.0,102610.0,0.00046606]
[1763041707273,0.94998225,102620.0,102610.0,0.00046606]
[1763041707684,1.20643423,102620.0,102610.0,0.00046606]
[1763041709336,0.69353027,102620.0,102610.0,0.00046606]
[1763041709543,0.94998225,102620.0,102610.0,0.00046606]
[1763041709744,0.58458225,102620.0,102610.0,0.00046606]
[1763041709925,0.32711153,102620.0,102610.0,0.00046606]
[1763041710165,0.13221775,102620.0,102610.0,0.19537883]
[1763041710784,0.12521775,102620.0,102610.0,0.19537883]
[1763041710997,0.12721775,102620.0,102610.0,0.19537883]
[1763041711204,0.13021775,102620.0,102610.0,0.19537883]
[1763041711409,0.32511153,102620.0,102610.0,0.19537883]
[1763041711610,0.32511153,102620.0,102610.0,0.00046606]
[1763041711990,0.58156351,102620.0,102610.0,0.00046606]
[1763041712630,0.91565932,102620.0,102610.0,0.00046606]
[1763041712842,0.83801549,102620.0,102610.0,0.00046606]
[1763041713074,0.88143423,102620.0,102610.0,0.00046606]
[1763041713281,1.20443423,102620.0,102610.0,0.00046606]
[1763041714310,1.22242419,102620.0,102610.0,0.00046606]
[1763041716088,1.31882367,102620.0,102610.0,0.00046606]
[1763041716281,1.33781616,102620.0,102610.0,0.00046606]
[1763041716699,1.36707895,102620.0,102610.0,0.00046606]
[1763041716902,1.27067947,102620.0,102610.0,0.00046606]
[1763041717763,0.75777551,102620.0,102610.0,0.00046606]
[1763041717988,1.27067947,102620.0,102610.0,0.00046606]
[1763041722295,1.26067948,102620.0,102610.0,0.00046606]
[1763041722494,1.27067947,102620.0,102610.0,0.00046606]
[1763041722702,1.26067948,102620.0,102610.0,0.00046606]
[1763041724056,1.27067947,102620.0,102610.0,0.00046606]
[1763041725496,0.75777551,102620.0,102610.0,0.00046606]
[1763041725817,1.27067947,102620.0,102610.0,0.00046606]
[1763041726166,1.22827947,102620.0,102610.0,0.00046606]
[1763041726370,1.21827948,102620.0,102610.0,0.00046606]
[1763041726570,0.10580771,102620.0,102610.0,0.22708883]
[1763041726760,0.13021775,102620.0,102610.0,0.27421883]
[1763041727464,0.32511153,102620.0,102610.0,0.07930606]
[1763041727657,0.32511153,102620.0,102610.0,0.27421883]
[1763041728758,0.08781775,102620.0,102610.0,0.27421883]
[1763041728966,0.13021775,102620.0,102610.0,0.27421883]
[1763041729123,0.32511153,102620.0,102610.0,0.27421883]
[1763041729331,0.32511153,102620.0,102610.0,0.29421883]
[1763041729626,0.13021775,102620.0,102610.0,0.27421883]
[1763041729881,0.32511153,102620.0,102610.0,0.29421883]
[1763041730015,0.32511153,102620.0,102610.0,0.27421883]
[1763041730202,0.32511153,102620.0,102610.0,0.07930606]
[1763041730403,0.64301762,102620.0,102610.0,0.00046606]
[1763041730871,0.81671777,102620.0,102610.0,0.00046606]
[1763041731079,0.38656564,102620.0,102610.0,0.00046606]
[1763041732814,0.3431469,102620.0,102610.0,0.00046606]
[1763041734263,0.10585312,102620.0,102610.0,0.65724096]
[1763041734397,0.005,102620.0,102610.0,0.70437096]
[1763041734580,0.002195,102620.0,102610.0,0.70437096]
[1763041734960,0.002195,102620.0,102610.0,0.72437096]
[1763041735086,0.002195,102620.0,102610.0,0.70437096]
[1763041735292,0.002195,102620.0,102610.0,0.72437096]
[1763041735535,0.19487499,102630.0,102620.0,0.19488518]
[1763041735864,0.19487499,102630.0,102620.0,0.26505518]
[1763041736167,0.32517789,102640.0,102620.0,0.31676518]
[1763041736366,0.34320939,102640.0,102630.0,0.03171]
[1763041737157,0.32517789,102640.0,102630.0,0.03171]
[1763041738261,0.32517789,102640.0,102630.0,0.22658479]
[1763041738463,0.08306344,102640.0,102630.0,0.27371479]
[1763041738819,0.08706344,102640.0,102630.0,0.70386692]
[1763041739248,0.08706344,102640.0,102630.0,0.72386692]
[1763041739626,0.08706344,102640.0,102630.0,0.70386692]
[1763041739825,0.08306344,102640.0,102630.0,0.70386692]
[1763041740036,0.08306344,102640.0,102630.0,0.72386692]
[1763041740274,0.60071876,102660.0,102640.0,0.2659258]
[1763041740418,0.64311876,102660.0,102640.0,0.2368258]
[1763041740626,0.32011876,102660.0,102650.0,0.24479682]
[1763041740825,0.07316003,102660.0,102650.0,0.28676682]
[1763041741029,0.04236,102670.0,102660.0,0.19481784]
[1763041741260,0.04236,102670.0,102660.0,0.26588784]
[1763041741261,0.08281775,102670.0,102660.0,0.26588784]
[1763041741507,0.27761662,102670.0,102660.0,0.26588784]
[1763041741644,0.08355464,102670.0,102660.0,0.26588784]
[1763041742039,0.08355464,102670.0,102660.0,0.28588784]
[1763041742244,0.27835351,102670.0,102660.0,0.07107]
[1763041742522,0.27835351,102670.0,102660.0,0.28588784]
[1763041742662,0.27835351,102670.0,102660.0,0.32824784]
[1763041742865,0.27935351,102670.0,102660.0,0.32824784]
[1763041743073,0.27935351,102670.0,102660.0,0.30824784]
[1763041743273,0.27935351,102670.0,102660.0,0.11343]
[1763041743684,0.08455464,102670.0,102660.0,0.26588784]
[1763041744125,0.27935351,102670.0,102660.0,0.07107]
[1763041744529,0.08455464,102670.0,102660.0,0.26588784]
[1763041744719,0.00173689,102670.0,102660.0,0.26588784]
[1763041744888,0.26958889,102670.0,102660.0,0.26588784]
[1763041745082,0.07479002,102670.0,102660.0,0.26588784]
[1763041745487,0.07479002,102670.0,102660.0,0.28588784]
[1763041745907,1.07479002,102670.0,102660.0,0.28588784]
[1763041746237,1.07479002,102670.0,102660.0,0.26588784]
[1763041746654,1.26958889,102670.0,102660.0,0.28588784]
[1763041746970,1.26958889,102670.0,102660.0,0.07107]
[1763041747298,1.07479002,102670.0,102660.0,0.26588784]
[1763041747489,1.07479002,102670.0,102660.0,0.28588784]
[1763041748199,1.07479002,102670.0,102660.0,0.26588784]
[1763041748610,1.26958889,102670.0,102660.0,0.26588784]
[1763041748993,1.69974102,102670.0,102650.0,0.26114227]
[1763041749202,0.19481784,102660.0,102650.0,0.30350227]
[1763041749398,0.19481784,102660.0,102650.0,0.32350227]
[1763041749601,0.19481784,102660.0,102650.0,0.33204227]
[1763041749803,0.29121732,102660.0,102650.0,0.09485]
[1763041750181,0.23717784,102660.0,102650.0,0.02086]
[1763041750385,0.19483682,102650.0,102640.0,0.02294]
[1763041750589,0.69804208,102650.0,102640.0,0.02294]
[1763041750794,0.1948558,102640.0,102630.0,0.06839]
[1763041751213,0.1948558,102640.0,102630.0,0.09693]
[1763041752480,0.19487479,102630.0,102620.0,0.06849]
[1763041752638,0.26792792,102630.0,102620.0,0.0971664]
[1763041752850,0.26792792,102630.0,102620.0,0.29206018]
[1763041753057,0.26792792,102630.0,102620.0,0.0971664]
[1763041753301,0.07305313,102630.0,102620.0,0.29206018]
[1763041753503,0.23721688,102640.0,102630.0,0.19487479]
[1763041753704,0.59089024,102650.0,102630.0,0.26326479]
[1763041753951,0.07305313,102650.0,102640.0,0.2233958]
[1763041754138,0.31024995,102650.0,102640.0,0.02854]
[1763041754345,0.31024995,102650.0,102640.0,0.2233958]
[1763041754589,0.6781296,102660.0,102640.0,0.2233958]
[1763041754590,0.07305313,102660.0,102640.0,0.2233958]
[1763041754800,0.07305313,102660.0,102650.0,0.2688253]
[1763041755007,0.07305313,102660.0,102650.0,0.07399]
[1763041755309,0.07305313,102660.0,102650.0,0.28882682]
[1763041755512,0.07305313,102660.0,102650.0,0.26882682]
[1763041755748,0.26787097,102660.0,102650.0,0.26882682]
[1763041755933,0.07605313,102660.0,102650.0,0.26882682]
[1763041756736,0.11841313,102660.0,102650.0,0.26882682]
[1763041756870,0.11841313,102660.0,102650.0,0.28882682]
[1763041757074,0.11541313,102660.0,102650.0,0.28882682]
[1763041757280,0.11941313,102660.0,102650.0,0.26882682]
[1763041757479,0.11941313,102660.0,102650.0,0.28882682]
[1763041758001,0.07705313,102660.0,102650.0,0.26882682]
[1763041758200,0.11941313,102660.0,102650.0,0.26882682]
[1763041758402,0.31423097,102660.0,102650.0,0.02854]
[1763041758605,0.31423097,102660.0,102640.0,0.04545]
[1763041758606,0.19483682,102650.0,102640.0,0.04545]
[1763041758806,0.19483682,102650.0,102640.0,0.2403058]
[1763041759006,0.19483682,102650.0,102640.0,0.2688458]
[1763041759566,0.19483682,102650.0,102640.0,0.2888458]
[1763041759766,0.19483682,102650.0,102640.0,0.2688458]
[1763041759970,0.00024569,102650.0,102640.0,0.2688458]
[1763041760516,0.00224569,102650.0,102640.0,0.2888458]
[1763041760656,0.00224569,102650.0,102640.0,0.69899793]
[1763041760866,0.00224569,102650.0,102640.0,0.71899793]
[1763041763455,0.00224569,102650.0,102640.0,0.69899793]
[1763041763656,0.00224569,102650.0,102640.0,1.04199793]
[1763041763861,0.62723464,102650.0,102640.0,0.07399]
[1763041764107,0.19708251,102650.0,102640.0,0.2233958]
[1763041764259,0.27013564,102650.0,102640.0,0.02854]
[1763041764464,0.26813564,102650.0,102640.0,0.02854]
[1763041765548,0.31049564,102650.0,102640.0,0.02854]
[1763041765729,0.1948558,102640.0,102630.0,0.02294]
[1763041766520,0.1948558,102640.0,102630.0,0.05148]
[1763041766962,0.1948558,102640.0,102630.0,0.02294]
[1763041767111,0.19487479,102630.0,102620.0,0.1109864]
[1763041767312,0.26792792,102630.0,102620.0,0.1109864]
[1763041767511,0.19487479,102630.0,102620.0,0.0971664]
[1763041767712,0.1948558,102640.0,102620.0,0.0971664]
[1763041767939,0.26792792,102630.0,102620.0,0.0517164]
[1763041768157,0.26792792,102630.0,102620.0,0.24661018]
[1763041768370,0.26792792,102630.0,102620.0,0.26661018]
[1763041768534,0.26792792,102630.0,102620.0,0.24661018]
[1763041768878,0.26792792,102630.0,102620.0,0.0527164]
[1763041769077,0.26792792,102630.0,102620.0,0.24661018]
[1763041769227,0.26792792,102630.0,102620.0,0.0517164]
[1763041769566,0.31028792,102630.0,102620.0,0.0241764]
[1763041769797,0.31028792,102630.0,102620.0,0.0231764]
[1763041770009,0.31028792,102630.0,102620.0,0.0001364]
[1763041770628,0.31028792,102630.0,102620.0,0.0011364]
[1763041770825,0.31028792,102630.0,102620.0,0.0001364]
[1763041771185,0.31128792,102630.0,102620.0,0.0001364]
[1763041773399,0.31128792,102630.0,102620.0,0.19503018]
[1763041773605,0.31128792,102630.0,102620.0,0.0001364]
[1763041774557,0.31128792,102630.0,102620.0,0.26645018]
[1763041774706,0.31128792,102630.0,102620.0,0.0715564]
[1763041774903,0.31128792,102630.0,102620.0,0.0272764]
[1763041775142,0.31128792,102630.0,102620.0,0.0001364]
[1763041777502,0.31128792,102630.0,102620.0,0.19503018]
[1763041777926,0.31128792,102630.0,102620.0,0.0001364]
[1763041778373,0.31128792,102630.0,102620.0,0.19503018]
[1763041780855,0.31128792,102630.0,102620.0,0.21503018]
[1763041781371,0.31128792,102630.0,102620.0,0.19503018]
[1763041781576,0.31128792,102630.0,102620.0,0.21503018]
[1763041782108,0.31128792,102630.0,102620.0,0.19503018]
[1763041782309,0.31128792,102630.0,102620.0,0.21503018]
[1763041782489,0.31128792,102630.0,102620.0,0.19503018]
[1763041783715,0.11641313,102630.0,102620.0,0.28645018]
[1763041784306,0.11641313,102630.0,102620.0,0.26645018]
[1763041784478,0.11641313,102630.0,102620.0,0.28645018]
[1763041785086,0.74144005,102630.0,102620.0,0.0001364]
[1763041785279,0.83506964,102630.0,102620.0,0.0001364]
[1763041785550,1.10785879,102630.0,102620.0,0.0001364]
[1763041791112,1.10685879,102630.0,102620.0,0.0001364]
[1763041791309,0.67670666,102630.0,102620.0,0.0001364]
[1763041791465,1.11085879,102630.0,102620.0,0.0001364]
[1763041792098,0.68070666,102630.0,102620.0,0.0001364]
[1763041792359,1.11085879,102630.0,102620.0,0.0001364]
[1763041793129,0.93730321,102630.0,102620.0,0.0001364]
[1763041793299,0.95533729,102630.0,102620.0,0.0001364]
[1763041794284,0.93730321,102630.0,102620.0,0.0001364]
[1763041795199,0.9553491,102630.0,102620.0,0.0001364]
[1763041795596,0.69875255,102630.0,102620.0,0.0001364]
[1763041797107,0.9553491,102630.0,102620.0,0.0001364]
[1763041800418,0.28997381,102630.0,102620.0,0.54026673]
[1763041800695,0.28997381,102630.0,102620.0,0.0001364]
[1763041800696,0.31428792,102630.0,102620.0,0.0001364]
[1763041800941,1.37632275,102630.0,102620.0,0.0001364]
[1763041801222,2.05387662,102630.0,102620.0,0.0001364]
[1763041801499,2.05890743,102630.0,102620.0,0.0001364]
[1763041801775,1.38135356,102630.0,102620.0,0.0001364]
[1763041801988,0.65335014,102630.0,102620.0,0.0194964]
[1763041802195,0.65335014,102630.0,102620.0,0.0001364]
[1763041802403,0.87920143,102630.0,102620.0,0.0001364]
[1763041803012,0.28799014,102630.0,102620.0,0.21439018]
[1763041803221,0.28599014,102630.0,102620.0,0.24161018]
[1763041803425,0.11541313,102630.0,102620.0,0.54021912]
[1763041803634,0.11941313,102630.0,102620.0,0.28367018]
[1763041803826,0.31428792,102630.0,102620.0,0.28367018]
[1763041804028,0.11541313,102630.0,102620.0,0.28367018]
[1763041804389,0.11741313,102630.0,102620.0,0.28367018]
[1763041804557,0.002,102630.0,102620.0,0.54021912]
[1763041804983,0.07505313,102630.0,102620.0,0.28367018]
[1763041805185,0.52647686,102630.0,102620.0,0.0001364]
[1763041805389,0.55770445,102630.0,102620.0,0.0001364]
[1763041805585,0.61919326,102630.0,102620.0,0.0001364]
[1763041806201,0.91096567,102630.0,102620.0,0.0001364]
[1763041806406,0.92000017,102630.0,102620.0,0.0001364]
[1763041806633,0.9408157,102630.0,102620.0,0.0001364]
[1763041808432,0.94081549,102630.0,102620.0,0.0001364]
[1763041808948,1.19736443,102630.0,102620.0,0.0001364]
[1763041809152,1.29376391,102630.0,102620.0,0.0001364]
[1763041809361,1.3037639,102630.0,102620.0,0.0001364]
[1763041809809,1.32975529,102630.0,102620.0,0.0001364]
[1763041810012,1.32775529,102630.0,102620.0,0.0001364]
[1763041810373,1.3067639,102630.0,102620.0,0.0001364]
[1763041810720,1.33275529,102630.0,102620.0,0.0001364]
[1763041811242,1.40463652,102630.0,102620.0,1e-08]
[1763041811614,1.40463652,102630.0,102550.0,0.05763]
[1763041811615,0.1950078,102560.0,102550.0,0.05763]
[1763041811826,0.49389772,102570.0,102550.0,0.25312287]
[1763041812062,0.23734878,102570.0,102560.0,0.2407978]
[1763041812292,0.23734878,102570.0,102560.0,0.02579]
[1763041812481,0.23734878,102570.0,102560.0,0.2207978]
[1763041812680,0.23734878,102570.0,102560.0,0.2407978]
[1763041812837,0.23734878,102570.0,102560.0,0.2207978]
[1763041813598,0.23734878,102570.0,102560.0,0.2217978]
[1763041813756,0.23734878,102570.0,102560.0,0.2417978]
[1763041813956,0.23734878,102570.0,102560.0,0.2217978]
[1763041814162,0.04075965,102570.0,102560.0,0.2227978]
[1763041814435,0.63447537,102600.0,102580.0,0.19496117]
[1763041814639,0.28607482,102600.0,102590.0,0.19495077]
[1763041814839,0.3103449,102600.0,102590.0,0.04491]
[1763041814958,0.3103449,102600.0,102590.0,0.23986077]
[1763041815161,0.07305313,102600.0,102590.0,0.27837077]
[1763041815487,0.3103449,102600.0,102590.0,0.27837077]
[1763041815725,0.3123449,102600.0,102590.0,0.27837077]
[1763041815895,0.3123449,102600.0,102590.0,0.27883683]
[1763041816460,0.04736,102600.0,102590.0,0.53538577]
[1763041816865,0.04736,102600.0,102590.0,0.55538577]
[1763041817068,0.002,102600.0,102590.0,0.29883683]
[1763041817270,0.002,102600.0,102590.0,0.27883683]
[1763041817487,0.004,102600.0,102590.0,0.53538577]
[1763041817617,0.004,102600.0,102590.0,0.55538577]
[1763041817816,0.004,102600.0,102590.0,0.53538577]
[1763041818023,0.004,102600.0,102590.0,0.57774577]
[1763041818217,0.004,102600.0,102590.0,0.59774577]
[1763041818463,0.002,102600.0,102590.0,0.57774577]
[1763041818792,0.26796614,102610.0,102600.0,0.19493177]
[1763041818962,0.26796614,102610.0,102600.0,0.22072177]
[1763041819175,0.26516114,102610.0,102600.0,0.02579]
[1763041819522,0.2651609,102610.0,102600.0,0.25923177]
[1763041819730,0.07024813,102610.0,102600.0,0.27923177]
[1763041819957,0.07024813,102610.0,102600.0,0.51678071]
[1763041820193,0.07024813,102610.0,102600.0,0.53678071]
[1763041820371,0.07024813,102610.0,102600.0,0.51678071]
[1763041820607,0.07024813,102610.0,102600.0,0.26023177]
[1763041821385,0.2651609,102610.0,102600.0,0.26023177]
[1763041821610,0.07024813,102610.0,102600.0,0.26023177]
[1763041822207,0.07024813,102610.0,102600.0,0.28023177]
[1763041822426,0.07024813,102610.0,102600.0,0.51678071]
[1763041822603,0.2651609,102610.0,102600.0,0.26023177]
[1763041822784,0.2651609,102610.0,102600.0,0.0653]
[1763041822988,0.52170984,102610.0,102600.0,0.02679]
[1763041823195,0.07024813,102610.0,102600.0,0.22172177]
[1763041823441,0.2651609,102610.0,102600.0,0.22172177]
[1763041823934,0.52170984,102610.0,102600.0,0.02679]
[1763041825157,0.52170984,102610.0,102600.0,0.001]
[1763041825516,1.77825878,102610.0,102600.0,0.001]
[1763041826007,1.52170984,102610.0,102600.0,0.001]
[1763041826147,1.82167752,102610.0,102600.0,0.001]
[1763041826548,2.14467752,102610.0,102600.0,0.001]
[1763041826779,0.56135051,102600.0,102590.0,0.00046606]
[1763041826982,1.11680839,102600.0,102590.0,0.00046606]
[1763041827822,1.15639383,102600.0,102590.0,0.00046606]
[1763041828078,1.11680839,102600.0,102590.0,0.00046606]
[1763041828722,1.11680839,102600.0,102590.0,0.00146606]
[1763041828932,1.03102965,102600.0,102590.0,0.00146606]
[1763041829215,0.23729177,102600.0,102590.0,0.08488606]
[1763041829338,0.49384071,102600.0,102590.0,0.04637606]
[1763041830155,0.49384071,102600.0,102590.0,0.02058606]
[1763041830356,0.23729177,102600.0,102590.0,0.24113683]
[1763041830616,0.49384071,102600.0,102590.0,0.24113683]
[1763041831374,1.52170984,102610.0,102590.0,0.27852683]
[1763041831573,0.23729177,102600.0,102590.0,0.29852683]
[1763041831774,0.04236,102600.0,102590.0,0.27852683]
[1763041831973,0.04236,102600.0,102590.0,0.29852683]
[1763041831974,0.23729177,102600.0,102590.0,0.29852683]
[1763041832175,0.04236,102600.0,102590.0,0.27852683]
[1763041832627,1.2651609,102610.0,102600.0,0.19493177]
[1763041832842,1.3075209,102610.0,102600.0,0.19493177]
[1763041833051,1.3075209,102610.0,102600.0,0.25792177]
[1763041833189,1.11260813,102610.0,102600.0,0.27792177]
[1763041833398,1.11260813,102610.0,102600.0,0.25792177]
[1763041833610,1.07024813,102610.0,102600.0,0.27792177]
[1763041833863,1.07124813,102610.0,102600.0,0.27792177]
[1763041834074,1.2661609,102610.0,102600.0,0.25792177]
[1763041834273,0.19493177,102600.0,102590.0,0.05797606]
[1763041834441,0.19493177,102600.0,102590.0,0.25192683]
[1763041834653,0.19493177,102600.0,102590.0,0.27752683]
[1763041835264,1.52370984,102610.0,102590.0,0.29752683]
[1763041835425,1.52170984,102610.0,102590.0,0.27852683]
[1763041835630,1.52170984,102610.0,102590.0,0.29852683]
[1763041835878,1.52170984,102610.0,102590.0,0.27852683]
[1763041835879,0.19493177,102600.0,102590.0,0.27852683]
[1763041836299,1.52170984,102610.0,102600.0,0.19493177]
[1763041836506,1.52170984,102610.0,102600.0,0.0256]
[1763041836882,0.19493177,102600.0,102590.0,0.25192683]
[1763041837301,0.19493177,102600.0,102590.0,0.27752683]
[1763041837961,0.19493177,102600.0,102590.0,0.08257606]
[1763041838092,0.19493177,102600.0,102590.0,0.27852683]
[1763041838303,0.49384071,102600.0,102590.0,0.00146606]
[1763041839327,1.0,102610.0,102600.0,0.19493177]
[1763041839559,1.23727277,102610.0,102600.0,0.0256]
[1763041839759,1.23727277,102610.0,102600.0,0.06299]
[1763041839932,1.23727277,102610.0,102600.0,0.25792177]
[1763041840564,1.23927277,102610.0,102600.0,0.06299]
[1763041841084,1.24027277,102610.0,102600.0,0.25792177]
[1763041841433,1.24027277,102610.0,102600.0,0.06299]
[1763041841839,1.24027277,102610.0,102600.0,0.25792177]
[1763041842618,1.24027277,102610.0,102600.0,0.06299]
[1763041842819,1.24027277,102610.0,102600.0,0.25792177]
[1763041843639,1.24027277,102610.0,102600.0,0.06299]
[1763041843991,1.24027277,102610.0,102600.0,0.25792177]
[1763041844193,1.24027277,102610.0,102600.0,0.06299]
[1763041844828,1.56987484,102610.0,102600.0,0.0256]
[1763041845029,0.19493177,102600.0,102590.0,0.00046606]
[1763041845258,0.45148071,102600.0,102590.0,0.00046606]
[1763041846691,0.04236,102600.0,102590.0,0.25840683]
[1763041847045,1.56687484,102610.0,102590.0,0.25940683]
[1763041847287,1.3103259,102610.0,102600.0,0.25792177]
[1763041847473,1.07305313,102610.0,102600.0,0.25792177]
[1763041847674,1.11541313,102610.0,102600.0,0.27792177]
[1763041848226,1.11541313,102610.0,102600.0,0.25792177]
[1763041848563,1.07305313,102610.0,102600.0,0.25792177]
[1763041848768,1.11641313,102610.0,102600.0,0.27792177]
[1763041849172,1.11741313,102610.0,102600.0,0.25792177]
[1763041849610,1.11741313,102610.0,102600.0,0.27792177]
[1763041849853,1.11641313,102610.0,102600.0,0.27792177]
[1763041850037,1.11841313,102610.0,102600.0,0.27792177]
[1763041850805,1.11841313,102610.0,102600.0,0.25792177]
[1763041851283,1.003,102610.0,102600.0,0.51447071]
[1763041851469,1.003,102610.0,102600.0,0.79101965]
[1763041851672,1.003,102610.0,102600.0,0.53447071]
[1763041852296,1.003,102610.0,102600.0,0.51447071]
[1763041852511,1.003,102610.0,102600.0,0.53447071]
[1763041852674,1.001,102610.0,102600.0,0.53447071]
[1763041852878,1.001,102610.0,102600.0,0.53547071]
[1763041853218,1.0,102610.0,102600.0,0.53547071]
[1763041853435,1.0,102610.0,102600.0,0.53747071]
[1763041853632,1.0,102610.0,102600.0,0.26092177]
[1763041853977,1.0,102610.0,102600.0,0.28092177]
[1763041854180,1.0,102610.0,102600.0,0.26092177]
[1763041854385,1.0,102610.0,102600.0,0.30324177]
[1763041855237,1.0,102610.0,102600.0,0.32324177]
[1763041855437,1.0,102610.0,102600.0,0.30324177]
[1763041855665,1.19491277,102610.0,102600.0,0.30324177]
[1763041855837,1.0,102610.0,102600.0,0.32324177]
[1763041856388,1.0,102610.0,102600.0,0.30324177]
[1763041856567,1.0,102610.0,102600.0,0.32324177]
[1763041857406,1.0,102610.0,102600.0,0.73334666]
[1763041858074,1.0,102610.0,102600.0,0.75334666]
[1763041859174,1.0,102610.0,102600.0,0.73334666]
[1763041859375,1.0,102610.0,102600.0,0.75334666]
[1763041860442,1.0,102610.0,102600.0,1.50645155]
[1763041861094,0.92014,102610.0,102600.0,1.50645155]
[1763041861343,0.92014,102610.0,102600.0,1.53155465]
[1763041861771,0.92014,102610.0,102600.0,1.53055465]
[1763041862208,0.92014,102610.0,102600.0,1.53155465]
[1763041862433,0.92014,102610.0,102600.0,1.53455465]
[1763041862634,0.92014,102610.0,102600.0,1.57797339]
[1763041862860,0.11561882,102650.0,102640.0,0.1948558]
[1763041862861,0.00024569,102650.0,102640.0,0.1948558]
[1763041863072,0.26813564,102650.0,102640.0,0.08586]
[1763041863494,0.26813564,102650.0,102640.0,0.04354]
[1763041863694,0.26813564,102650.0,102630.0,0.05621]
[1763041863695,0.1948558,102640.0,102630.0,0.05621]
[1763041863902,0.1948558,102640.0,102630.0,0.06144]
[1763041864115,0.21995235,102640.0,102630.0,0.06144]
[1763041864554,0.21995235,102640.0,102630.0,0.01912]
[1763041864769,0.19490837,102620.0,102610.0,0.02266]
[1763041864991,0.19491277,102610.0,102600.0,0.26049164]
[1763041865159,0.19491277,102610.0,102600.0,0.30281164]
[1763041865391,0.19491277,102610.0,102600.0,0.35403164]
[1763041865585,0.19491277,102610.0,102600.0,0.1391]
[1763041865814,0.19491277,102610.0,102600.0,0.09678]
[1763041866021,0.19491277,102610.0,102550.0,0.04266]
[1763041866022,0.19498878,102570.0,102550.0,0.04266]
[1763041866316,0.04232,102560.0,102550.0,0.26058681]
[1763041866518,0.2373278,102560.0,102550.0,0.26058681]
[1763041866664,0.2373278,102560.0,102550.0,0.29180681]
[1763041866865,0.04232,102560.0,102550.0,0.29180681]
[1763041867108,0.2373278,102560.0,102550.0,0.09678]
[1763041867319,0.31042743,102560.0,102550.0,0.29180681]
[1763041867536,0.74053232,102560.0,102550.0,0.05388]
[1763041867750,0.74053232,102560.0,102550.0,0.02266]
[1763041867751,0.34016743,102560.0,102550.0,0.02266]
[1763041868329,0.34016743,102560.0,102550.0,0.02366]
[1763041868557,0.07309963,102560.0,102550.0,0.21968681]
[1763041868746,0.31042743,102560.0,102550.0,0.02466]
[1763041868946,0.81231232,102560.0,102550.0,0.002]
[1763041869169,0.34016743,102560.0,102550.0,0.002]
[1763041869582,0.34016743,102560.0,102550.0,0.19702681]
[1763041869960,0.34016743,102560.0,102550.0,0.002]
[1763041870361,0.81231232,102560.0,102550.0,0.002]
[1763041872644,0.34016743,102560.0,102550.0,0.19702681]
[1763041872789,0.31042743,102560.0,102550.0,0.25090681]
[1763041872985,0.31042743,102560.0,102550.0,0.7239117]
[1763041872986,0.07309963,102560.0,102550.0,0.7239117]
[1763041873208,0.31042743,102560.0,102550.0,0.09878]
[1763041873432,0.31042743,102560.0,102550.0,0.21968681]
[1763041873628,0.31042743,102560.0,102550.0,0.25090681]
[1763041874430,0.26810743,102560.0,102550.0,0.05588]
[1763041874636,0.31042743,102560.0,102550.0,0.05588]
[1763041874811,0.31042743,102560.0,102550.0,0.25090681]
[1763041875466,0.11541963,102560.0,102550.0,0.25090681]
[1763041875676,0.11541963,102560.0,102550.0,0.31380681]
[1763041876482,4.65e-05,102560.0,102550.0,1.0892317]
[1763041876828,4.65e-05,102560.0,102550.0,1.1092317]
[1763041878333,4.65e-05,102560.0,102550.0,1.0892317]
[1763041878543,0.1950543,102560.0,102550.0,0.05588]
[1763041878757,0.26810743,102560.0,102550.0,0.05588]
[1763041878961,0.26810743,102560.0,102550.0,0.09878]
[1763041879162,0.26810743,102560.0,102550.0,0.29380681]
[1763041879545,0.07309963,102560.0,102550.0,0.29380681]
[1763041879737,0.07309963,102560.0,102550.0,0.31380681]
[1763041880185,0.12749979,102560.0,102550.0,0.29380681]
[1763041880376,0.12749979,102560.0,102550.0,0.31380681]
[1763041880715,0.12749979,102560.0,102550.0,0.29380681]
[1763041880920,0.12749979,102560.0,102550.0,0.09878]
[1763041881465,0.12749979,102560.0,102550.0,0.29380681]
[1763041881670,0.07305313,102560.0,102550.0,0.29380681]
[1763041882078,0.26806093,102560.0,102550.0,0.29380681]
[1763041882274,0.26806093,102560.0,102550.0,0.09878]
[1763041882275,0.74048582,102560.0,102550.0,0.09878]
[1763041882816,0.81223582,102560.0,102550.0,0.002]
[1763041886351,1.38215893,102560.0,102550.0,0.002]
[1763041886533,0.97000338,102560.0,102550.0,0.002]
[1763041886735,0.81223582,102560.0,102550.0,0.002]
[1763041887583,0.19504107,102550.0,102530.0,0.2934927]
[1763041887749,0.12036692,102540.0,102530.0,0.2734927]
[1763041888164,0.31541275,102540.0,102530.0,0.3247127]
[1763041888639,0.07800692,102540.0,102530.0,0.3247127]
[1763041888824,0.27305275,102540.0,102530.0,0.3247127]
[1763041889022,0.31541275,102540.0,102530.0,0.3247127]
[1763041889167,0.27305275,102540.0,102530.0,0.3047127]
[1763041889373,0.12036692,102540.0,102530.0,0.3047127]
[1763041889764,0.31541275,102540.0,102530.0,0.09989533]
[1763041889977,0.34530275,102540.0,102530.0,0.02577533]
[1763041890195,0.81700764,102540.0,102530.0,0.00311533]
[1763041890814,0.93136166,102540.0,102530.0,0.00311533]
[1763041891024,0.9747804,102540.0,102530.0,0.00311533]
[1763041891703,1.2977804,102540.0,102530.0,0.00311533]
[1763041892389,1.30675759,102540.0,102530.0,0.00311533]
[1763041892800,1.30675759,102540.0,102520.0,0.0004]
[1763041892801,0.51806485,102530.0,102520.0,0.0004]
[1763041893010,1.15786375,102530.0,102520.0,0.0004]
[1763041893164,1.17684359,102530.0,102520.0,0.0004]
[1763041893362,0.56150262,102520.0,102510.0,0.0004]
[1763041893527,1.64542951,102520.0,102510.0,0.0004]
[1763041893945,1.21532462,102520.0,102510.0,0.0004]
[1763041894476,1.64542951,102520.0,102510.0,0.00086606]
[1763041895042,1.64842951,102520.0,102510.0,0.00086606]
[1763041895654,1.6691515,102520.0,102510.0,0.00086606]